bitfinex-derivatives/quotes_ETHF0:USTF0_20241018
["timestamp","ask_amount","ask_price","bid_price","bid_amount"]
[1729241165067,3.2078,2639.0,2638.7,0.3885]
[1729241165269,0.37904,2638.9,2638.8,0.37904]
[1729241165973,0.37905,2638.8,2638.7,0.76755]
[1729241167066,0.37904,2638.9,2638.8,0.37904]
[1729241167670,3.2078,2639.0,2638.9,0.37904]
[1729241168374,0.37899,2639.3,2639.0,0.37902]
[1729241168375,0.37902,2639.1,2639.0,0.37902]
[1729241168571,0.37902,2639.1,2639.0,0.79372]
[1729241168772,0.37902,2639.1,2639.0,1.19342]
[1729241169067,0.37902,2639.1,2639.0,0.8144]
[1729241171165,0.37902,2639.1,2639.0,1.19342]
[1729241172173,0.379,2639.2,2639.1,0.379]
[1729241172686,0.379,2639.2,2639.1,0.7826]
[1729241173175,0.379,2639.2,2639.1,0.4036]
[1729241174278,0.379,2639.2,2639.1,0.78261]
[1729241174583,3.2078,2639.3,2639.1,0.4036]
[1729241174781,3.2078,2639.3,2639.2,0.37899]
[1729241175076,3.58678,2639.3,2639.2,0.37899]
[1729241177082,3.58678,2639.3,2639.1,0.4036]
[1729241177274,3.58678,2639.3,2639.2,0.37899]
[1729241177777,0.37899,2639.2,2639.1,0.7826]
[1729241177979,3.58679,2639.3,2639.1,0.7826]
[1729241178774,0.37899,2639.3,2639.2,0.37899]
[1729241180379,0.37899,2639.2,2639.1,0.7826]
[1729241180781,0.37899,2639.2,2639.1,4.5714]
[1729241181271,0.37899,2639.2,2639.1,0.7826]
[1729241182078,3.2078,2639.4,2639.1,0.4036]
[1729241182281,0.37899,2639.3,2639.2,0.37899]
[1729241183085,3.58677,2639.4,2639.3,0.37898]
[1729241183587,3.2078,2639.4,2639.1,0.4036]
[1729241183788,3.58677,2639.4,2639.3,0.37898]
[1729241184581,3.58677,2639.4,2639.1,0.4036]
[1729241184582,0.37895,2639.6,2639.4,0.37895]
[1729241184782,0.37895,2639.6,2639.1,3.6114]
[1729241184783,0.37895,2639.6,2639.5,1.227]
[1729241184984,0.37895,2639.6,2639.5,1.60595]
[1729241185180,0.37895,2639.6,2639.5,1.227]
[1729241188687,0.37895,2639.6,2639.5,0.7999]
[1729241191803,0.37895,2639.6,2639.5,1.17885]
[1729241192298,0.37895,2639.6,2639.5,0.7999]
[1729241192994,0.37895,2639.6,2639.5,1.17885]
[1729241193294,0.37895,2639.6,2639.5,0.7999]
[1729241194598,0.37895,2639.6,2639.5,1.17885]
[1729241194799,3.6177,2639.7,2639.5,0.7999]
[1729241195105,3.58672,2639.7,2639.6,0.37894]
[1729241195393,3.2078,2639.7,2639.6,0.80354]
[1729241197798,3.2078,2640.0,2639.6,0.4246]
[1729241198099,0.37889,2639.9,2639.8,0.3789]
[1729241198395,3.58668,2640.0,2639.9,0.37889]
[1729241198702,3.2078,2640.0,2639.6,0.4246]
[1729241198999,3.58669,2640.0,2639.8,0.3789]
[1729241199200,3.58669,2640.0,2639.9,0.4178]
[1729241199394,3.58669,2640.0,2639.9,0.8355]
[1729241199792,0.4269,2640.1,2639.9,1.21439]
[1729241200000,0.37885,2640.2,2640.1,0.37886]
[1729241200200,0.37885,2640.2,2640.0,0.77317]
[1729241200390,3.5999,2640.5,2640.0,0.3943]
[1729241200391,0.37886,2640.1,2640.0,0.3943]
[1729241201109,3.5999,2640.5,2639.2,9.3053651]
[1729241201110,0.37894,2639.6,2639.2,9.3053651]
[1729241201403,0.37894,2639.6,2639.5,0.4178]
[1729241201595,0.37894,2639.6,2639.5,0.79675]
[1729241202999,3.6153,2639.9,2639.5,0.4178]
[1729241203302,0.37894,2639.6,2639.5,0.79674]
[1729241205394,0.37894,2639.6,2639.5,0.4178]
[1729241205811,0.37894,2639.6,2639.5,0.79675]
[1729241206701,3.6153,2639.9,2639.5,0.79674]
[1729241206702,0.37891,2639.8,2639.5,0.79674]
[1729241206907,3.6153,2639.9,2639.6,0.4142]
[1729241207210,0.37892,2639.7,2639.6,0.4142]
[1729241210708,0.37892,2639.7,2639.6,0.79313]
[1729241211311,0.37892,2639.7,2639.6,0.4142]
[1729241212109,0.37892,2639.7,2639.6,0.79313]
[1729241212306,0.37892,2639.7,2639.6,0.4142]
[1729241213805,0.37892,2639.7,2639.2,2.0045651]
[1729241213806,3.788,2639.7,2639.2,0.9835651]
[1729241214106,0.379,2639.2,2639.0,4.5703751]
[1729241214304,0.379,2639.2,2639.1,0.4143]
[1729241218115,4.4057,2639.6,2639.1,0.4143]
[1729241218417,0.37898,2639.4,2639.2,0.37898]
[1729241218717,0.37898,2639.4,2639.2,0.79518]
[1729241219816,0.37898,2639.4,2639.2,0.4162]
[1729241220119,0.37898,2639.4,2639.3,0.37898]
[1729241221508,4.4057,2639.6,2639.2,0.4162]
[1729241221703,4.4057,2639.6,2639.2,0.79518]
[1729241221914,0.37897,2639.4,2639.2,0.79518]
[1729241222513,0.37897,2639.4,2639.3,0.37898]
[1729241224207,4.4057,2639.6,2639.2,0.4162]
[1729241224404,0.37898,2639.4,2639.2,0.4162]
[1729241224603,0.37898,2639.4,2639.3,0.37898]
[1729241225820,0.37896,2639.4,2639.3,0.37898]
[1729241227117,0.37898,2639.3,2639.2,0.79518]
[1729241227813,0.37897,2639.4,2639.3,0.37897]
[1729241228124,4.4057,2639.6,2639.3,0.37897]
[1729241228323,0.3868,2639.6,2639.4,0.3939]
[1729241228620,0.37891,2639.8,2639.7,0.37891]
[1729241228818,3.2078,2639.9,2639.8,0.37891]
[1729241229019,3.2078,2639.9,2639.5,0.9835651]
[1729241229320,3.5867,2639.9,2639.6,0.4065]
[1729241229520,3.5867,2639.9,2639.7,0.37892]
[1729241230016,3.5867,2639.9,2639.8,0.3937]
[1729241230412,3.2078,2639.9,2639.8,0.3937]
[1729241230619,3.58669,2639.9,2639.8,0.3937]
[1729241231217,0.37889,2639.9,2639.8,0.3937]
[1729241231424,3.58669,2639.9,2639.8,0.3937]
[1729241231834,3.2078,2639.9,2639.8,0.77261]
[1729241232725,0.37889,2640.0,2639.8,0.77261]
[1729241232940,0.37888,2640.0,2639.8,0.3937]
[1729241233232,0.37888,2640.0,2639.9,0.37889]
[1729241233525,0.37888,2640.0,2639.8,0.7726]
[1729241235124,0.79947,2640.1,2639.8,0.3937]
[1729241235327,0.37885,2640.2,2639.8,0.3937]
[1729241235524,0.37885,2640.2,2639.8,1.3772651]
[1729241235726,3.2078,2640.3,2639.8,1.3772651]
[1729241235931,3.58664,2640.3,2639.8,1.3772651]
[1729241236223,0.37885,2640.2,2640.1,0.37886]
[1729241236528,0.37885,2640.2,2639.8,1.3772651]
[1729241236529,0.37886,2640.2,2640.0,0.37887]
[1729241236738,0.37886,2640.1,2640.0,0.37887]
[1729241237027,3.5988,2640.3,2639.8,0.3937]
[1729241237331,3.5988,2640.3,2640.0,0.37888]
[1729241237332,0.37887,2640.1,2640.0,0.37888]
[1729241240532,0.37887,2640.1,2639.8,0.3937]
[1729241241332,0.37887,2640.1,2640.0,0.37888]
[1729241243140,0.8094,2640.3,2639.9,0.3978]
[1729241243429,0.37886,2640.2,2640.0,0.37887]
[1729241244432,0.37886,2640.1,2640.0,0.37887]
[1729241246232,0.8094,2640.3,2639.9,0.3978]
[1729241246430,0.8094,2640.3,2640.1,0.37886]
[1729241246431,0.37885,2640.2,2640.1,0.37886]
[1729241246629,1.18824,2640.3,2640.2,0.37885]
[1729241246927,0.37884,2640.3,2640.2,0.37885]
[1729241247931,0.37885,2640.2,2640.1,0.37885]
[1729241248133,3.6169,2640.4,2640.1,0.37886]
[1729241248334,0.37883,2640.3,2640.2,0.4173]
[1729241248631,0.37883,2640.3,2640.2,0.8099]
[1729241249425,0.37883,2640.3,2640.2,1.18875]
[1729241249834,0.37883,2640.3,2640.2,0.8099]
[1729241250932,3.2078,2640.4,2640.3,0.37883]
[1729241251838,0.37881,2640.5,2640.4,0.37882]
[1729241252228,0.4021,2640.8,2640.2,0.8099]
[1729241252438,0.4021,2640.8,2640.7,0.37878]
[1729241252439,0.78087,2640.8,2640.7,0.37878]
[1729241252735,0.37878,2640.7,2640.2,2.7405751]
[1729241252949,0.37878,2640.7,2640.6,0.37879]
[1729241255144,0.3889,2641.2,2640.2,0.8099]
[1729241255436,0.37878,2640.7,2640.5,0.3788]
[1729241255633,0.37878,2640.7,2640.6,1.22049]
[1729241257039,0.37877,2640.8,2640.6,1.22048]
[1729241257246,0.37876,2640.9,2640.7,0.37878]
[1729241259935,0.37875,2641.0,2640.6,0.8417]
[1729241260149,0.37876,2640.9,2640.6,0.8417]
[1729241260341,0.37876,2640.9,2640.8,0.37876]
[1729241261056,0.3998,2641.1,2640.6,0.8417]
[1729241261239,0.77852,2641.1,2640.7,3.2078]
[1729241261547,0.77852,2641.1,2641.0,0.37873]
[1729241261750,0.3998,2641.1,2641.0,0.37873]
[1729241262246,0.77852,2641.1,2641.0,0.37873]
[1729241262443,0.3998,2641.1,2641.0,0.76743]
[1729241262647,0.77852,2641.1,2641.0,0.76743]
[1729241264154,0.3998,2641.1,2641.0,0.76743]
[1729241264863,0.77852,2641.1,2641.0,0.76743]
[1729241265167,0.37872,2641.1,2641.0,0.76743]
[1729241265962,0.37872,2641.2,2641.1,0.37872]
[1729241266260,0.37872,2641.1,2641.0,0.76742]
[1729241269764,0.37872,2641.2,2641.1,0.37871]
[1729241269957,0.4217,2641.3,2641.0,0.3887]
[1729241270150,0.4217,2641.3,2641.2,0.37871]
[1729241270151,0.8004,2641.3,2641.2,0.37871]
[1729241270864,0.3976,2641.6,2641.0,0.3887]
[1729241271059,0.37868,2641.4,2641.3,0.37868]
[1729241271364,0.37867,2641.5,2641.4,0.37867]
[1729241272971,0.78116,2641.6,2641.4,0.37867]
[1729241273157,0.37866,2641.5,2641.4,0.37867]
[1729241275569,0.37866,2641.5,2641.0,4.43174956]
[1729241275866,0.37868,2641.4,2641.3,0.37869]
[1729241276058,0.37868,2641.4,2641.0,3.48492956]
[1729241276463,0.37868,2641.4,2641.3,0.37869]
[1729241276866,0.4025,2641.6,2641.3,0.37869]
[1729241277067,0.37867,2641.5,2641.3,0.37869]
[1729241277262,0.37868,2641.4,2641.3,0.37869]
[1729241277463,0.4025,2641.6,2641.0,3.48492956]
[1729241277464,0.37867,2641.5,2641.0,3.48492956]
[1729241277955,0.37867,2641.5,2641.3,0.37868]
[1729241278361,0.37867,2641.5,2641.4,0.37868]
[1729241278663,0.37867,2641.5,2641.3,0.37868]
[1729241279064,0.37867,2641.5,2641.4,0.37868]
[1729241279979,0.37867,2641.5,2641.0,3.48492956]
[1729241280472,0.78116,2641.6,2641.0,4.43175956]
[1729241280662,0.37866,2641.6,2641.0,4.43175956]
[1729241280859,0.37866,2641.6,2641.5,0.37866]
[1729241281270,0.37866,2641.6,2641.0,4.43175956]
[1729241281573,4.0117,2641.8,2641.0,4.43175956]
[1729241281865,0.37865,2641.6,2641.5,0.37866]
[1729241282472,0.37866,2641.5,2641.4,0.37867]
[1729241282662,4.0117,2641.8,2641.2,0.3998]
[1729241282663,0.37864,2641.7,2641.6,0.37865]
[1729241282863,0.37863,2641.7,2641.5,0.37865]
[1729241283073,4.0117,2641.8,2641.5,0.37865]
[1729241283280,0.37865,2641.6,2641.5,0.37865]
[1729241284174,0.37866,2641.5,2641.4,0.37867]
[1729241284376,4.0117,2641.8,2641.2,0.3998]
[1729241284563,0.37867,2641.5,2641.4,0.37867]
[1729241289482,0.4011,2641.6,2641.3,0.37868]
[1729241289483,0.37868,2641.4,2641.3,0.37868]
[1729241289770,0.37866,2641.5,2641.4,0.37868]
[1729241290471,0.37869,2641.4,2641.3,0.37868]
[1729241290671,0.37867,2641.5,2641.4,0.37867]
[1729241291770,0.4011,2641.6,2641.2,0.3998]
[1729241291970,0.37867,2641.5,2641.4,0.37867]
[1729241295279,3.2078,2642.0,2641.4,3.7856]
[1729241295477,0.94638,2642.3,2641.6,0.37864]
[1729241295478,0.37864,2641.7,2641.6,0.37864]
[1729241295875,0.37864,2641.7,2641.6,10.16424]
[1729241296471,0.37864,2641.7,2641.6,4.16424]
[1729241297274,0.37864,2641.7,2641.6,10.16424]
[1729241297583,0.37863,2641.8,2641.7,0.37862]
[1729241297778,0.37863,2641.8,2641.7,1.19702]
[1729241297975,0.37863,2641.8,2641.7,4.98262]
[1729241298287,0.37863,2641.8,2641.7,0.8184]
[1729241298686,0.37863,2641.8,2641.7,1.19703]
[1729241298981,0.37863,2641.8,2641.7,0.8184]
[1729241302181,0.37863,2641.8,2641.7,1.2225]
[1729241302487,0.37863,2641.8,2641.7,1.60113]
[1729241305393,0.3786,2642.0,2641.9,0.3786]
[1729241305789,3.2078,2642.1,2642.0,0.37859]
[1729241305790,3.58639,2642.1,2642.0,0.37859]
[1729241306088,3.2078,2642.1,2642.0,0.37859]
[1729241306787,3.58638,2642.1,2642.0,0.37859]
[1729241308191,0.37858,2642.1,2642.0,0.37859]
[1729241310191,0.4092,2642.2,2641.7,1.2225]
[1729241310387,0.3786,2642.0,2641.9,0.37859]
[1729241316491,0.80189,2642.1,2642.0,0.37859]
[1729241317294,0.37858,2642.1,2642.0,0.37859]
[1729241319189,0.37858,2642.1,2642.0,0.37598812]
[1729241320997,0.25358,2642.1,2642.0,0.37598812]
[1729241321200,0.37857,2642.2,2642.1,0.37856]
[1729241321504,4.0028,2642.5,2642.0,0.37858]
[1729241321505,0.37858,2642.1,2642.0,0.37858]
[1729241322189,4.0028,2642.5,2641.7,1.2225]
[1729241322396,0.37857,2642.2,2642.1,0.37857]
[1729241322593,0.37858,2642.1,2642.0,0.37858]
[1729241322996,4.0028,2642.5,2642.0,0.37858]
[1729241323199,0.37857,2642.2,2642.1,0.7989]
[1729241323500,0.37857,2642.2,2642.1,1.17748]
[1729241323697,4.0028,2642.5,2642.1,0.7989]
[1729241323894,0.37856,2642.2,2642.1,1.17747]
[1729241324299,4.0028,2642.5,2642.1,1.17747]
[1729241324503,0.37856,2642.2,2642.1,1.17747]
[1729241324702,4.0028,2642.5,2642.1,0.7989]
[1729241324902,0.37855,2642.3,2642.2,0.37855]
[1729241326601,4.0028,2642.5,2642.1,0.7989]
[1729241326799,0.37856,2642.3,2642.2,0.37856]
[1729241326998,4.0028,2642.5,2642.1,1.17746]
[1729241326999,0.37853,2642.4,2642.1,1.17746]
[1729241327314,0.37856,2642.3,2642.2,0.37856]
[1729241329104,0.37856,2642.3,2642.1,0.7989]
[1729241329105,0.37856,2642.2,2642.1,0.7989]
[1729241329304,0.37858,2642.1,2642.0,0.37859]
[1729241329499,0.37861,2641.9,2641.8,3.2078]
[1729241329709,0.37862,2641.8,2641.7,0.37863]
[1729241330401,0.37862,2641.8,2641.6,0.3998]
[1729241330605,0.8136,2642.0,2641.5,0.37866]
[1729241330813,0.8136,2642.0,2641.4,4.0271]
[1729241331015,0.37865,2641.6,2641.5,0.37866]
[1729241331613,0.37866,2641.5,2641.4,3.2078]
[1729241331819,1.19476,2641.5,2641.4,3.58648]
[1729241332400,1.19476,2641.5,2641.4,3.2078]
[1729241332808,1.19476,2641.5,2641.4,3.58648]
[1729241333917,0.8161,2641.5,2641.4,3.58648]
[1729241334407,1.19476,2641.5,2641.4,3.58648]
[1729241337020,0.8161,2641.5,2641.4,3.58648]
[1729241337413,1.2306,2641.5,2641.4,3.58648]
[1729241337814,0.37864,2641.7,2641.4,3.2078]
[1729241338012,0.37864,2641.7,2641.6,0.37865]
[1729241339919,0.3934,2641.8,2641.5,0.4159]
[1729241340121,0.37864,2641.7,2641.6,0.37864]
[1729241340522,0.37861,2641.9,2641.5,0.4159]
[1729241340720,0.3866,2642.1,2641.5,2.3461051]
[1729241340919,0.76519,2642.1,2641.6,0.9835651]
[1729241341125,0.76519,2642.1,2641.7,0.4283]
[1729241341435,0.3786,2642.0,2641.9,0.37859]
[1729241342821,0.3866,2642.1,2641.7,3.6361]
[1729241343022,0.37859,2642.0,2641.9,0.37859]
[1729241344430,0.3866,2642.1,2641.7,3.6361]
[1729241344727,0.76519,2642.1,2642.0,0.37859]
[1729241346724,0.3866,2642.1,2641.9,0.4133]
[1729241346923,0.37859,2642.0,2641.9,0.7919]
[1729241347129,0.37861,2641.9,2641.8,0.79321]
[1729241347626,0.3875,2642.0,2641.4,2.85012765]
[1729241347627,0.3875,2642.0,2641.5,0.9835651]
[1729241347819,0.3875,2642.0,2641.5,0.37866]
[1729241347820,0.4027,2641.8,2641.5,0.37866]
[1729241348022,0.4196,2641.7,2641.6,0.37865]
[1729241348422,0.79823,2641.7,2641.6,0.37865]
[1729241349327,0.37865,2641.6,2641.5,0.37865]
[1729241351439,0.4196,2641.7,2641.4,0.4146]
[1729241351740,0.79825,2641.7,2641.6,0.37865]
[1729241354024,0.3875,2642.0,2641.4,0.4146]
[1729241354228,0.37862,2641.8,2641.7,0.37863]
[1729241355033,0.3886,2641.9,2641.6,0.4261]
[1729241355331,0.37861,2641.9,2641.8,0.37862]
[1729241356829,0.3786,2642.0,2641.9,0.3786]
[1729241360539,0.4227,2642.1,2641.5,1.3879651]
[1729241360840,0.4227,2642.1,2642.0,0.37859]
[1729241361132,0.4227,2642.1,2642.0,0.37858]
[1729241361133,0.37858,2642.1,2642.0,0.37858]
[1729241362434,0.4013,2642.2,2641.6,5.1379951]
[1729241362435,0.4013,2642.2,2642.1,0.37858]
[1729241362626,4.0464,2642.5,2641.8,0.94656]
[1729241362827,0.37853,2642.4,2642.2,0.37856]
[1729241363032,0.37853,2642.4,2641.9,0.4053]
[1729241363243,0.37853,2642.4,2642.2,0.37855]
[1729241363533,0.37856,2642.3,2642.1,0.37857]
[1729241363737,0.37856,2642.3,2642.2,0.79266]
[1729241365738,0.4013,2642.4,2642.2,0.4141]
[1729241365935,0.77984,2642.4,2642.2,0.4141]
[1729241366131,0.77984,2642.4,2642.3,0.37855]
[1729241366332,0.4013,2642.4,2642.3,0.37855]
[1729241366931,0.80063,2642.5,2642.2,0.4141]
[1729241366932,0.37853,2642.5,2642.2,0.4141]
[1729241367229,0.37853,2642.5,2642.4,0.37853]
[1729241367537,0.37853,2642.5,2642.3,0.80363]
[1729241367838,0.37853,2642.5,2642.4,0.37853]
[1729241368534,0.3785,2642.6,2642.3,0.80363]
[1729241368741,0.37853,2642.5,2642.4,0.37853]
[1729241369239,1.1954,2642.7,2642.3,0.80364]
[1729241369444,0.37853,2642.5,2642.3,0.37854]
[1729241369633,0.37854,2642.4,2642.3,0.37855]
[1729241369835,0.3933,2642.4,2642.3,0.37855]
[1729241370230,0.77183,2642.4,2642.3,0.37855]
[1729241370641,0.3933,2642.4,2642.3,0.37855]
[1729241370845,0.37853,2642.5,2642.4,0.37853]
[1729241371049,3.58633,2642.5,2642.4,0.37853]
[1729241371348,0.37853,2642.5,2642.4,0.37853]
[1729241373439,0.3933,2642.6,2642.3,0.4192]
[1729241373840,0.37855,2642.3,2642.2,0.79266]
[1729241374043,0.37855,2642.3,2642.2,0.4141]
[1729241374639,0.37855,2642.3,2642.2,0.79266]
[1729241374840,0.37855,2642.3,2642.2,0.4141]
[1729241375038,0.37856,2642.2,2642.1,0.79777]
[1729241375350,0.80596,2642.2,2642.1,0.79778]
[1729241376242,0.80596,2642.2,2642.1,0.4192]
[1729241376435,0.80596,2642.2,2641.8,0.393]
[1729241376436,0.4274,2642.2,2641.8,0.393]
[1729241376748,0.8394,2642.1,2641.8,0.393]
[1729241376935,0.37861,2641.9,2641.8,0.77161]
[1729241377541,0.8394,2642.1,2641.8,0.393]
[1729241377739,0.37861,2641.9,2641.8,0.77161]
[1729241377939,0.8394,2642.1,2641.8,0.393]
[1729241378145,0.3786,2642.0,2641.9,0.3786]
[1729241379842,0.37861,2641.9,2641.8,0.77161]
[1729241380549,0.3786,2642.0,2641.9,0.3786]
[1729241384045,0.8394,2642.1,2641.8,0.393]
[1729241384346,0.37861,2641.9,2641.8,0.77162]
[1729241386446,0.8394,2642.1,2641.8,0.393]
[1729241386750,0.37861,2642.0,2641.9,0.3786]
[1729241390645,0.37861,2642.0,2641.9,0.7937]
[1729241392647,0.37861,2642.0,2641.9,0.3786]
[1729241393252,0.37861,2641.9,2641.8,0.77161]
[1729241397356,0.3786,2642.0,2641.9,0.3786]
[1729241397944,0.3919,2642.1,2641.8,0.393]
[1729241398149,0.37861,2641.9,2641.8,0.77161]
[1729241398349,0.3919,2642.1,2641.8,0.77161]
[1729241398350,0.3919,2642.1,2641.8,0.393]
[1729241398651,0.3786,2642.0,2641.9,0.3786]
[1729241400650,0.37859,2642.1,2642.0,0.37858]
[1729241401658,0.3786,2642.0,2641.9,0.3786]
[1729241402062,5.24185796,2642.2,2642.1,0.37858]
[1729241402455,0.80597,2642.2,2642.1,0.37858]
[1729241402755,0.4274,2642.2,2641.8,0.393]
[1729241402961,0.4274,2642.2,2642.0,0.37858]
[1729241402962,0.37858,2642.1,2642.0,0.37858]
[1729241403857,0.3786,2642.0,2641.9,0.3786]
[1729241404256,0.37861,2641.9,2641.8,0.393]
[1729241404561,0.37861,2641.9,2641.8,0.77162]
[1729241409163,0.3975,2642.1,2641.9,0.3786]
[1729241409164,0.3786,2642.0,2641.9,0.3786]
[1729241410660,0.37861,2641.9,2641.8,0.77162]
[1729241412775,0.3975,2642.1,2641.8,0.393]
[1729241412979,0.3786,2642.0,2641.9,0.3786]
[1729241415873,0.37859,2642.1,2642.0,0.37858]
[1729241416170,0.3786,2642.0,2641.9,0.3786]
[1729241417277,3.2078,2642.2,2641.8,0.393]
[1729241417574,3.58637,2642.2,2642.1,0.37858]
[1729241421474,0.37857,2642.2,2642.1,0.37858]
[1729241425273,3.2078,2642.3,2642.0,0.4247]
[1729241425482,0.37857,2642.2,2642.1,0.37856]
[1729241425983,3.58636,2642.3,2642.2,0.37856]
[1729241426474,3.2078,2642.3,2642.2,0.37856]
[1729241427276,3.2078,2642.3,2642.2,0.79116]
[1729241427474,3.58635,2642.3,2642.2,0.79116]
[1729241428081,3.2078,2642.3,2642.2,0.79116]
[1729241435889,0.37853,2642.4,2642.3,0.37855]
[1729241436789,3.6277,2642.5,2642.2,0.4126]
[1729241437079,4.00622,2642.5,2642.4,0.37853]
[1729241437484,0.37854,2642.4,2642.3,0.37854]
[1729241437682,3.6277,2642.5,2642.2,0.4126]
[1729241437683,4.00623,2642.5,2642.4,0.37853]
[1729241438771,4.00623,2642.5,2642.3,0.37854]
[1729241438772,0.37854,2642.4,2642.3,0.37854]
[1729241442886,4.00623,2642.5,2642.4,0.37853]
[1729241444185,4.00622,2642.5,2642.4,0.37853]
[1729241447898,0.79842,2642.5,2642.4,0.37853]
[1729241448990,0.37854,2642.4,2642.3,0.37854]
[1729241456688,0.79843,2642.5,2642.4,0.37853]
[1729241461597,0.37861,2641.9,2641.6,0.99378199]
[1729241461800,0.37866,2641.5,2641.4,1.40378199]
[1729241462102,1.2356,2641.8,2641.2,3.2078]
[1729241462493,1.2356,2641.8,2641.3,0.4277]
[1729241462694,1.2356,2641.8,2641.4,0.4038]
[1729241462909,0.37866,2641.5,2641.4,0.4038]
[1729241463196,0.37869,2641.4,2641.2,3.58651]
[1729241464297,42.0356,2641.8,2641.2,3.2078]
[1729241464497,0.37867,2641.5,2641.3,0.37868]
[1729241464696,0.37869,2641.4,2641.2,3.58649]
[1729241465094,0.37869,2641.3,2641.2,3.2078]
[1729241465299,0.37869,2641.4,2641.2,3.58651]
[1729241466010,0.37869,2641.4,2641.2,0.37871]
[1729241466400,0.37869,2641.4,2641.1,4.0308]
[1729241466600,0.37869,2641.4,2641.2,0.37871]
[1729241466893,0.37869,2641.3,2641.2,0.37871]
[1729241467304,3.2078,2641.7,2641.2,0.37871]
[1729241467605,0.37869,2641.4,2641.2,0.37871]
[1729241467812,0.37869,2641.4,2641.1,4.0308]
[1729241468036,0.37869,2641.4,2641.3,0.37869]
[1729241468897,3.2078,2641.7,2641.1,4.0308]
[1729241469093,3.2078,2641.7,2641.2,0.3787]
[1729241469094,0.37869,2641.3,2641.2,0.3787]
[1729241469511,3.2078,2641.7,2641.1,4.0308]
[1729241469512,0.37868,2641.4,2641.3,0.37869]
[1729241470302,3.2078,2641.7,2641.2,0.3787]
[1729241470498,0.37869,2641.4,2641.1,4.0308]
[1729241470910,0.3787,2641.3,2641.1,4.0308]
[1729241471107,0.37871,2641.2,2641.1,0.823]
[1729241471608,0.3787,2641.3,2641.1,1.20171]
[1729241471798,0.3787,2641.3,2641.1,0.823]
[1729241471998,0.3787,2641.3,2641.2,0.37871]
[1729241474708,0.37869,2641.3,2641.2,0.37871]
[1729241475010,4.15441,2641.7,2641.1,0.823]
[1729241475204,0.3787,2641.3,2641.2,0.3787]
[1729241475411,0.37871,2641.2,2641.1,0.823]
[1729241475708,0.37875,2640.9,2640.8,3.2078]
[1729241476210,0.37875,2640.9,2640.4,0.4267]
[1729241476211,0.37881,2640.5,2640.4,0.4267]
[1729241477208,3.2078,2640.8,2640.1,0.4286]
[1729241477399,1.32573,2640.7,2640.1,0.8553]
[1729241477604,0.37884,2640.3,2640.1,1.23416]
[1729241478110,1.2535,2640.6,2639.8,3.2078]
[1729241478111,3.2078,2640.5,2639.8,3.2078]
[1729241478301,3.2078,2640.5,2640.4,0.37882]
[1729241478497,3.2078,2640.8,2640.1,3.2078]
[1729241478700,3.58657,2640.8,2640.6,0.37879]
[1729241478907,3.58657,2640.8,2640.7,0.8395]
[1729241479408,3.58657,2640.8,2640.7,1.21828]
[1729241479607,3.58657,2640.8,2640.7,0.8395]
[1729241481001,3.58657,2640.8,2640.7,0.4136]
[1729241481407,0.37879,2640.7,2640.5,0.3788]
[1729241481604,3.2078,2640.8,2640.4,0.4007]
[1729241481805,0.37881,2640.5,2640.4,0.4007]
[1729241482907,0.37881,2640.5,2640.4,0.77952]
[1729241486202,0.37881,2640.5,2640.4,0.4007]
[1729241488615,0.37882,2640.4,2640.3,0.79853]
[1729241490514,0.37881,2640.5,2640.4,0.37882]
[1729241492016,3.5866,2640.6,2640.4,0.37882]
[1729241492229,0.3788,2640.6,2640.5,0.37881]
[1729241492511,0.37882,2640.5,2640.3,0.4197]
[1729241492710,0.37882,2640.4,2640.3,0.79853]
[1729241493309,0.37882,2640.4,2640.3,0.4197]
[1729241493504,9.7872,2640.4,2639.6,3.2078]
[1729241493710,9.7872,2640.4,2639.9,0.37889]
[1729241493711,3.2078,2640.2,2639.9,0.37889]
[1729241493911,0.37888,2640.0,2639.9,0.37889]
[1729241494817,0.37886,2640.1,2639.8,0.8549]
[1729241495113,3.2078,2640.2,2640.1,0.37886]
[1729241495114,3.58665,2640.2,2640.1,0.37886]
[1729241497603,0.37885,2640.2,2640.1,0.37886]
[1729241497910,3.58665,2640.2,2640.1,0.37886]
[1729241498808,0.37885,2640.2,2640.1,0.37886]
[1729241499008,3.58665,2640.2,2640.1,0.37886]
[1729241501117,0.37885,2640.2,2640.1,0.37886]
[1729241501518,3.2078,2640.2,2640.1,0.37886]
[1729241501718,3.58665,2640.2,2640.1,0.37886]
[1729241502112,3.01789067,2640.2,2640.1,0.37886]
[1729241502417,2.63904067,2640.2,2640.1,0.37886]
[1729241502613,0.37882,2640.4,2640.1,3.788]
[1729241502816,0.37882,2640.4,2640.3,0.37883]
[1729241506122,0.8274,2640.7,2640.3,0.37883]
[1729241506325,0.3788,2640.6,2640.5,0.3788]
[1729241508319,3.6106,2640.9,2640.2,0.7834]
[1729241508626,0.37878,2640.8,2640.7,0.37877]
[1729241508822,0.37878,2640.7,2640.6,0.37878]
[1729241511124,3.6106,2640.9,2640.3,0.99378199]
[1729241511334,0.37882,2640.5,2640.4,0.37882]
[1729241511520,0.3873,2640.6,2640.2,0.7834]
[1729241511827,0.3873,2640.6,2640.3,0.37883]
[1729241511828,0.37882,2640.4,2640.3,0.37883]
[1729241512432,0.3873,2640.6,2640.2,0.7834]
[1729241512624,0.37879,2640.7,2640.5,0.37881]
[1729241512931,0.37878,2640.7,2640.6,0.4082]